Cogmind - Beta 14 @@@ ROGUE MODE // 2025.03.25 @ 20:51:23 Player: Singularius Result: Destroyed by as-02871 with Assembled Rifle Performance ------------- Evolutions (0) 0 Regions Visited (2) 400 Robots Destroyed (13) 65 Value Destroyed (313) 313 Prototype IDs (0) 0 Alien Tech Used (0) 0 Bonus (10) 10 TOTAL SCORE: 788 Bonus ------- High Alert Combat Kills 10 Cogmind --------- Core Integrity 0/250 Matter 300/300 Energy 150/150 System Corruption 2% Temperature Cool (0) Movement Walking (190) Ox1 Location -10/Mines Parts ------- > --- POWER (1) -------- Light Angular Momentum Engine > --- PROPULSION (2) --- Aluminum Leg Aluminum Leg > --- UTILITY (2) ------ Small Storage Unit > --- WEAPON (2) ------- Field Laser Flak Cannon > --- INVENTORY (8) ---- Light Ion Engine Light Nuclear Core Small Laser Small Laser Particle Gun Particle Gun Light Cannon Mining Laser Peak State ------------ > --- POWER ------------ Light Angular Momentum Engine > --- PROPULSION ------- Aluminum Leg Carbon-fiber Leg > --- UTILITY ---------- Small Storage Unit > --- WEAPON ----------- Field Laser Flak Cannon > --- INVENTORY -------- Light Ion Engine Light Nuclear Core Small Laser Small Laser Particle Gun Particle Gun Light Cannon Mining Laser [Rating: 17] Favorites ----------- Power Light Nuclear Core Engine Light Ion Engine Power Core Light Nuclear Core Propulsion Aluminum Leg Leg Aluminum Leg Utility Small Storage Unit Storage Small Storage Unit Weapon Particle Gun Energy Gun Particle Gun Ballistic Cannon Flak Cannon Special Weapon Mining Laser Build | -11 -10 -10 ------- Run | Yrd Mat Min Slots Evolved . | . . . Power . | . . . Propulsion . | . . . Utility . | . . . Weapon . | . . . Parts Attached 22 | 6 2 14 Power 5 | 1 1 3 Engine 2 | 1 . 1 Core 3 | . 1 2 Reactor . | . . . Propulsion 7 | 2 . 5 Treads . | . . . Leg 7 | 2 . 5 Wheel . | . . . Hover . | . . . Flight . | . . . Utility 1 | 1 . . Device . | . . . Storage 1 | 1 . . Processor . | . . . Hackware . | . . . Protection . | . . . Artifact . | . . . Weapon 9 | 2 1 6 Energy Gun 7 | 2 1 4 Energy Cannon . | . . . Ballistic Gun . | . . . Ballistic Cannon 1 | . . 1 Launcher . | . . . Special Weapon 1 | . . 1 Impact Weapon . | . . . Slashing Weapon . | . . . Piercing Weapon . | . . . Special Melee Weapon . | . . . Unidentified Prototypes . | . . . Parts Lost 7 | . . 7 Power 1 | . . 1 Propulsion 2 | . . 2 Utility . | . . . Weapon 4 | . . 4 Highest Loss Streak 5 | . . 5 To Critical Strikes . | . . . Average Slot Usage (%) 82 | . 85 81 Engine 3 | . 6 1 Core 10 | . 7 11 Leg 26 | . 28 26 Storage 14 | . 14 14 Energy Gun 25 | . 28 23 Ballistic Cannon 1 | . . 2 Peak Build Rating 17 | 6 9 17 Average Rating 8 | 4 7 9 On Entrance 5 | . 6 9 Naked Turns . | . . . Heaviest Build 23 | 11 15 23 Greatest Support 25 | 20 20 25 Greatest Overweight (x) 2 | . . 2 Average Overweight (x) . | . . . Largest Inventory Capacity 8 | 8 8 8 Average Capacity 7 | 7 8 8 Most Carried 8 | 2 6 8 Average Carried 5 | 1 4 6 Final Capacity 8 | 8 8 8 Final Carried 8 | 2 6 8 Class Distribution -------------------- 100% | Mutant Dominant Class ---------------- Mutant | -10/Materials Mutant | -10/Mines Resources | -11 -10 -10 ----------- Run | Yrd Mat Min Matter Collected 452 | 218 90 144 Remotely . | . . . Salvage Created 387 | . 90 297 Parts 30 | . 6 24 Haulers Intercepted . | . . . Recyclers Shooed . | . . . Parts Field Recycled . | . . . Retrieved Matter . | . . . Parts Self-Destructed . | . . . Prevented . | . . . Kills | -11 -10 -10 ------- Run | Yrd Mat Min Combat Hostiles Destroyed 15 | . 2 13 Guns 13 | . 2 11 Cannons 2 | . . 2 Classes Destroyed 3 | . 1 2 Swarmer 7 | . . 7 Grunt 6 | . 2 4 Assembled 2 | . . 2 Best Kill Streak 4 | . 2 4 Combat Bots Only 4 | . 2 4 Max Kills in Single Turn 1 | . 1 1 Gunslinging . | . . . Exploded . | . . . Melee . | . . . Uniques/NPCs Destroyed . | . . . Combat | -11 -10 -10 -------- Run | Yrd Mat Min Hostile Shots Fired 98 | . 18 80 Missed 22 | . 1 21 Damage Taken 1046 | . 228 818 Core 251 | . 40 211 Absorbed by Shields . | . . . Core Remaining (%) 100 | 100 . . Volleys Fired 42 | . 13 29 Largest 2 | . 2 2 Hottest 126 | . 115 126 Shots Fired 80 | . 26 54 Gun 76 | . 26 50 Cannon 4 | . . 4 Launcher . | . . . Special . | . . . Kinetic 4 | . . 4 Thermal 59 | . 26 33 Explosive . | . . . Electromagnetic 17 | . . 17 Robot Hit Streak 9 | . 7 9 Robot Miss Streak 3 | . 3 3 Penetration Max . | . . . Secondary Targets 1 | . . 1 Max Gunslinging Chain 1 | . . 1 Shots Hit Robots 54 | . 17 37 Core Hits 26 | . 5 21 Critical Kills . | . . . Critical Parts Destroyed . | . . . Critical Strikes 2 | . . 2 Burn 2 | . . 2 Melee Attacks . | . . . Impact . | . . . Slashing . | . . . Piercing . | . . . Sneak Attacks . | . . . Combat Hostiles . | . . . Follow-up Attacks . | . . . Damage Inflicted 743 | . 205 538 Guns 679 | . 205 474 Cannons 64 | . . 64 Explosions . | . . . Melee . | . . . Ramming . | . . . Kinetic 64 | . . 64 Thermal 512 | . 205 307 Explosive . | . . . Electromagnetic 167 | . . 167 Impact . | . . . Slashing . | . . . Piercing . | . . . Highest Corruption 2 | . 2 2 Average Corruption 2 | . 2 2 Corruption Purged . | . . . Corruption Blocked . | . . . Effects 9 | . 2 7 Message Errors 2 | . . 2 Heat Flow Errors 1 | . 1 . Parts Rejected 1 | . . 1 Data Loss (minor) 2 | . 1 1 Data Loss (major) 1 | . . 1 Weapon Failures 2 | . . 2 Overload Shots . | . . . Overflow Damage . | . . . Projectiles . | . . . Explosions . | . . . Melee . | . . . Knockbacks 4 | . . 4 Impact . | . . . Kinetic 4 | . . 4 Secondary . | . . . Self-Inflicted Damage . | . . . Shots . | . . . Rammed . | . . . Targets Rammed . | . . . Kicked . | . . . Crushed . | . . . Highest Temperature 490 | . 490 330 Average Temperature 157 | . 240 120 Received Heat Transfer 333 | . 162 171 Effects 4 | . 4 . Shutdowns 2 | . 2 . Energy Bleed 1 | . 1 . Matter Decay 1 | . 1 . Siege Activations . | . . . Robots Corrupted . | . . . Combat Hostiles . | . . . Parts Fried . | . . . Impact Corruptions . | . . . Robots Melted . | . . . Combat Hostiles . | . . . Parts Melted 2 | . 1 1 Heat Transferred 1421 | . 533 888 Parts Sabotaged . | . . . Parts Stolen . | . . . Parts Stripped . | . . . Power Chain Reactions . | . . . Alert | -11 -10 -10 ------- Run | Yrd Mat Min Peak Influence 427 | . 110 427 Initial 42 | . . 42 Average 182 | . 70 282 Maximum Alert Level 2 | . . 2 Low Security (%) 61 | 100 100 30 Level 1 25 | . . 45 Level 2 13 | . . 23 Level 3 . | . . . Level 4 . | . . . Level 5 . | . . . High Security . | . . . Max Security . | . . . Squads Dispatched 2 | . 1 1 Investigation 2 | . 1 1 Extermination . | . . . Reinforcement . | . . . Assault . | . . . Garrison . | . . . Intercept . | . . . Searches Triggered . | . . . Construction Impeded . | . . . Haulers Reinforced . | . . . Active Scanning Responses . | . . . Cargo Convoy Interrupts . | . . . Stealth | -11 -10 -10 --------- Run | Yrd Mat Min Distress Signals . | . . . Communications Jammed . | . . . Distress Signals . | . . . Times Spotted 46 | . 8 38 Peak Tracking Total 12 | . 4 12 Tactical Retreats 4 | . 1 3 Traps | -11 -10 -10 ------- Run | Yrd Mat Min Traps Triggered 2 | . 2 . Indirectly . | . . . Trap Hack Attempts . | . . . Triggered . | . . . Disarmed . | . . . Reprogrammed . | . . . Reused . | . . . Traps Extracted . | . . . Installed . | . . . Triggered 1 | . . 1 Machines | -11 -10 -10 ---------- Run | Yrd Mat Min Machines Disabled . | . . . Max in Single Turn . | . . . Machines Repaired . | . . . Machines Dismantled . | . . . Machines Sabotaged . | . . . Overloaded Fab Kills . | . . . Hacking | -11 -10 -10 --------- Run | Yrd Mat Min Machines Accessed 5 | . 4 1 Terminals 3 | . 3 . Fabricators . | . . . Repair Stations . | . . . Recycling Units 1 | . 1 . Scanalyzers . | . . . Garrison Access . | . . . Total Hacks 10 | . 9 1 Successful 3 | . 2 1 Failed 7 | . 7 . Catastrophic 2 | . 2 . Database Lockouts . | . . . Manual . | . . . Terminals 7 | . 7 . Fabricators . | . . . Repair Stations . | . . . Recycling Units 2 | . 2 . Scanalyzers . | . . . Garrison Access . | . . . Terminal Hacks 1 | . . 1 Open Door 1 | . . 1 Fabricator Hacks . | . . . Repair Station Hacks . | . . . Recycling Unit Hacks 2 | . 2 . Report Inventory 1 | . 1 . Retrieve Components 1 | . 1 . Scanalyzer . | . . . Garrison Access Hacks . | . . . Unauthorized Hacks . | . . . Terminals . | . . . Fabricators . | . . . Repair Stations . | . . . Recycling Units . | . . . Scanalyzers . | . . . Garrison Access . | . . . Data Cores Recovered . | . . . Used . | . . . Hacking Detections 3 | . 3 . Full Trace Events . | . . . Feedback Events . | . . . Feedback Blocked . | . . . Robot Schematics Acquired . | . . . Robots Built . | . . . Authchips . | . . . Time . | . . . Total Robot Build Rating . | . . . Part Schematics Acquired . | . . . Parts Built . | . . . Authchips . | . . . Time . | . . . Total Part Build Rating . | . . . Parts Repaired . | . . . Time . | . . . Parts Recycled . | . . . Recycled Matter . | . . . Retrieved Matter . | . . . Retrieved Components 2 | . 2 . Parts Scanalyzed . | . . . Part Schematics Acquired . | . . . Parts Damaged . | . . . Bothacking | -11 -10 -10 ------------ Run | Yrd Mat Min Used RIF Installer . | . . . Robots Hacked . | . . . Non-combat . | . . . Combat . | . . . Robot Hacks Applied . | . . . Relay Couplers Released . | . . . Fabnet Peak Effective % . | . . . Robots Rewired . | . . . Allies Hacked . | . . . Hacks Repelled . | . . . Allies | -11 -10 -10 -------- Run | Yrd Mat Min Total Allies 1 | . . 1 Largest Group 1 | . . 1 Highest-Rated Group 31 | . . 31 Highest-Rated Ally 31 | . . 31 Total Orders . | . . . Ally Attacks 7 | . . 7 Total Damage 83 | . . 83 Kills 3 | . . 3 Allies Corrupted . | . . . Allies Melted . | . . . Intel | -11 -10 -10 ------- Run | Yrd Mat Min Robot Analysis Total . | . . . Derelict Logs Recovered . | . . . Drone Launches . | . . . Drone Recoveries . | . . . Exploration | -11 -10 -10 ------------- Run | Yrd Mat Min Turns Passed 759 | 62 276 421 Spaces Moved 447 | 44 182 221 Core 2 | 2 . . Treads . | . . . Legs 445 | 42 182 221 Wheels . | . . . Hover . | . . . Flight . | . . . Fastest Speed 50 | 50 120 120 Average Speed 123 | 116 120 127 Slowest Speed 260 | 120 120 260 Overloaded Moves . | . . . Propulsion Burnouts . | . . . Robots Hopped . | . . . Cave-ins Triggered . | . . . Exploration Rate (%) 27 | 3 37 43 Regions Visited 2 Branch Regions 1 Pre-discovered Areas . | . . . Known Exits Taken . | . . . Unknown Exits Taken 2 | 1 1 . Scrap Searched 1 | . . 1 Spaces Dug . | . . . Terrain Destroyed . | . . . Melee . | . . . Projectile . | . . . AOE . | . . . Terrain Rammed . | . . . Walls Destroyed . | . . . Machines Disabled . | . . . Actions | -11 -10 -10 --------- Run | Yrd Mat Min Total 564 | 51 212 301 Wait 46 | . 14 32 Move 445 | 43 181 221 Hop . | . . . Pick Up 7 | 2 2 3 Fast Attach 10 | 6 . 4 Attach 4 | . . 4 Detach . | . . . Swap 8 | . 2 6 Drop 2 | . . 2 Fire 42 | . 13 29 Melee . | . . . Ram . | . . . Kick . | . . . Crush . | . . . Escape Stasis . | . . . Rewire . | . . . Trap . | . . . Miscellaneous . | . . . Route ------- -11/Scrapyard -10/Materials -10/Mines (discovered 1 exit: [*Mat]) History --------- Turn | Location | Event 5 | -11/Scrapyard | Discovered new exit (range 16) 63 | -11/Scrapyard | Entered Materials 258 | -10/Materials | Discovered new exit (range 16) 300 | -10/Materials | Build established: Mutant 339 | -10/Materials | Entered Mines 633 | -10/Mines | Discovered new exit (range 11) 636 | -10/Mines | Met a Derelict shopkeep closing up shop 637 | -10/Mines | Assembled infested the area 642 | -10/Mines | Assisted by a Guerilla fighting off Assembled 646 | -10/Mines | Core integrity fell below 50% 677 | -10/Mines | Core integrity fell below 20% 680 | -10/Mines | Received a Mining Laser from a helpful Derelict 710 | -10/Mines | Lost 5 parts (1p1n3w) 760 | -10/Mines | Destroyed by as-02871 with Assembled Rifle Last Messages --------------- than you might think..." Acquired Mining Laser. as-05396 destroyed. as-24037 destroyed. HJ-E6I(g) destroyed. as-98784 destroyed. Acquired Carbon-fiber Leg. Acquired 52 matter. Acquired 10 matter. Acquired Field Laser. System corrupted: Carbon-fiber Leg rejected. as-85366 knocked back. as-85366 destroyed. K-01 Serf destroyed. Acquired Aluminum Leg. Acquired 22 matter. Dropped Aluminum Leg. The unstable cave ceiling collapses. Acquired 20 matter. U-05 Engineer lays Concrete. Map ----- +----------------------------------------------------+ | | | | | | | | | | | | | | | | | | | | | | | | | | | | | | | | | | | | | ????????????########???????????????? | | ??????????###""""""#?????####??????? | | ?????????## !! ! #????## #####??? | | ???######## * ###???# #??? | | ? ## # # # = ##??# #??? | | # ##??# #??? | | % u= #### < ##??? | | #### % %%!% % % %@% #???? | | ????## a |* =##### #??? | | ?????#### # #???# #??? | | ????????### # ### #???## ##??? | | ??????????# # # ##???## ##???? | | ??????????# # ### ##########????? | | ??????????# #### ## ^? ####??? | | ??????????#! # # # # "#??? | | ??????????#% ### [% # # "#??? | | ?????????? ??## # #??? | | ?????????? ???## ## ## #??? | | ????????? ?????# ### = #??? | | ????????? ?????# #?##%= ##?? | | ???????? ?#?###### #??#*= #?? | | ????????????# #?## #?? | | ????????????# #######?# ##?? | | ???????????## ##??????# ##??? | | ??????????## ##?????## #???? | | ??????????# #??????### #??? | | ??????????# #????????## #?? | | ??????????# #?????????? #?? | | ??????????# ##??????????# ##?? | | ??????????# #????????????#####??? | | ??????????# #???????????????????? | | ?????????## ##???????????????????? | +----------------------------------------------------+ Best States ------------- Heat Dissipation 25 Energy Generation 18 Energy Capacity 160 Matter Stores 300 Matter Capacity 300 Sight Range 16 Terrain Scan Density 10 Evasion (%) 55 Item Schematics ----------------- None Robot Schematics ------------------ None Fabricated ------------ Nothing Alien Tech Used ----------------- None Achievements -------------- None Challenges ------------ None Game ------ Seed XenonAbsorptionSegregator Manual? 0 Play Time 00:17:17 Cumulative 13.5 hours Start 2025.03.25 @ 20:33:11 End 2025.03.25 @ 20:51:23 Sessions 1 Manual Loads 0 Difficulty Rogue Special Mode None Game No. 8 Rogue 8 Adventurer 0 Explorer 0 Win Type - Total 0 Types 0/0/0/0/0/0/0/0/0 Lore% 11 Gallery% 15 Achievement% 14 Wizard Run 0 Options --------- Layout 1 ASCII 0 Keyboard 0 Movement Numpad Keybinds 0 Fullscreen 1 Font 24/Smallcaps Map View 50x35 Zoom Use 0% Tactical HUD 0 Map Filters NONE Filters NONE Steam 1 RUN: 88ee77ba-cd09-4435-8cbc-bf14cc93a657